bitfinex/quotes_BTCUSD_20240908
["timestamp","ask_amount","ask_price","bid_price","bid_amount"]
[1725802944028,0.12984439,54348.0,54346.0,0.1524048]
[1725802944235,0.31384439,54348.0,54346.0,0.1524048]
[1725802944453,0.31484439,54348.0,54346.0,0.1544048]
[1725802945297,0.13084439,54348.0,54347.0,0.0658]
[1725802945512,0.03084439,54348.0,54347.0,0.11000308]
[1725802945727,0.31484339,54348.0,54347.0,0.11000308]
[1725802946913,0.285999,54348.0,54347.0,0.0658]
[1725802947566,0.101,54348.0,54347.0,0.0658]
[1725802947798,0.183979,54354.0,54349.0,0.0648]
[1725802948020,0.18398,54354.0,54351.0,0.08875594]
[1725802948236,0.02749521,54357.0,54352.0,0.03536264]
[1725802948468,0.18398,54354.0,54352.0,0.03536264]
[1725802948713,0.183982,54353.0,54352.0,0.03536264]
[1725802949638,0.283982,54353.0,54352.0,0.03536264]
[1725802950301,0.31282343,54353.0,54352.0,0.03536264]
[1725802950541,0.12884143,54353.0,54352.0,0.20131858]
[1725802950770,0.12884143,54353.0,54352.0,0.38830358]
[1725802950988,0.02884143,54353.0,54352.0,0.45410358]
[1725802951200,0.12884143,54353.0,54352.0,0.45410358]
[1725802951642,0.12984143,54353.0,54352.0,0.27511858]
[1725802951913,0.02984143,54353.0,54352.0,1.19504558]
[1725802952162,0.001,54353.0,54352.0,1.56301658]
[1725802952385,0.001,54353.0,54352.0,0.702956]
[1725802952625,0.001,54353.0,54352.0,0.151]
[1725802953292,0.001,54353.0,54352.0,0.334985]
[1725802953760,0.001,54353.0,54352.0,0.331985]
[1725802953991,0.002,54353.0,54352.0,0.706956]
[1725802954221,0.001,54353.0,54352.0,0.701956]
[1725802954488,0.000815,54354.0,54352.0,0.694956]
[1725802954695,0.001,54353.0,54352.0,0.704956]
[1725802954933,0.001,54353.0,54352.0,0.333985]
[1725802955160,0.001,54353.0,54352.0,0.343985]
[1725802955387,0.001,54353.0,54352.0,0.336985]
[1725802955688,0.001,54353.0,54352.0,0.326985]
[1725802955893,0.001,54353.0,54352.0,0.335985]
[1725802956104,0.000815,54354.0,54352.0,0.326985]
[1725802957411,0.001,54353.0,54352.0,0.332985]
[1725802957642,0.002,54353.0,54352.0,0.342985]
[1725802957857,0.000815,54354.0,54352.0,0.326985]
[1725802958077,0.001815,54354.0,54352.0,0.335985]
[1725802958284,0.002815,54354.0,54352.0,0.341985]
[1725802958502,0.002815,54354.0,54352.0,0.4407805]
[1725802958716,0.001,54353.0,54352.0,0.4447805]
[1725802959163,0.001,54353.0,54352.0,0.4397805]
[1725802959392,0.001,54353.0,54352.0,0.4487805]
[1725802960064,0.001,54353.0,54352.0,0.2647955]
[1725802960497,0.001,54353.0,54352.0,0.2597955]
[1725802960706,0.000815,54354.0,54352.0,0.2507955]
[1725802960911,0.001,54353.0,54352.0,0.2657955]
[1725802961117,0.002,54353.0,54352.0,0.2657955]
[1725802961330,0.001,54353.0,54352.0,0.2507955]
[1725802961573,0.002,54353.0,54352.0,0.2597955]
[1725802961780,0.001,54353.0,54352.0,0.2567955]
[1725802962245,0.001,54353.0,54352.0,0.2587955]
[1725802962459,0.184982,54353.0,54352.0,0.149]
[1725802962667,0.184982,54353.0,54352.0,0.0832]
[1725802962668,0.552946,54353.0,54352.0,0.0832]
[1725802963315,0.58178716,54353.0,54352.0,0.0832]
[1725802963740,0.32724416,54353.0,54352.0,0.0832]
[1725802963956,0.51122616,54353.0,54352.0,0.0832]
[1725802964379,0.51204016,54353.0,54352.0,0.0832]
[1725802964588,0.51204016,54353.0,54352.0,0.0922]
[1725802964804,0.51304016,54353.0,54352.0,0.0922]
[1725802965016,0.51304016,54353.0,54352.0,0.0832]
[1725802965246,0.21563716,54353.0,54352.0,0.0922]
[1725802966569,0.03165516,54353.0,54352.0,0.1266323]
[1725802966987,0.186796,54353.0,54352.0,0.1266323]
[1725802967534,0.186796,54353.0,54352.0,0.0922]
[1725802968832,0.002814,54353.0,54352.0,0.1587]
[1725802970216,0.002814,54353.0,54352.0,0.34636439]
[1725802970407,0.002814,54353.0,54352.0,1.08230639]
[1725802972423,0.002814,54353.0,54352.0,1.56067083]
[1725802972618,0.002814,54353.0,54352.0,1.55867083]
[1725802974191,0.002814,54353.0,54352.0,1.64928427]
[1725802975525,0.002814,54353.0,54352.0,1.64328427]
[1725802975967,0.003814,54353.0,54352.0,1.64828427]
[1725802976183,0.001814,54353.0,54352.0,1.7168452]
[1725802977469,0.002814,54353.0,54352.0,1.7278452]
[1725802984959,0.002814,54353.0,54352.0,2.1058162]
[1725802985755,0.000814,54353.0,54352.0,2.0898162]
[1725802986157,0.000814,54353.0,54352.0,2.1008162]
[1725802986158,0.001814,54353.0,54352.0,2.1008162]
[1725802987355,0.000814,54353.0,54352.0,2.0988162]
[1725802987812,0.000814,54353.0,54352.0,2.1038162]
[1725802988052,0.000814,54353.0,54352.0,2.0898162]
[1725802988277,0.000814,54353.0,54352.0,2.1178162]
[1725802988929,0.000814,54353.0,54352.0,2.1194442]
[1725802989133,0.000814,54353.0,54352.0,2.0914442]
[1725802989300,0.000814,54353.0,54352.0,2.1054442]
[1725802989509,0.000814,54353.0,54352.0,2.1194442]
[1725802992950,0.000814,54353.0,54352.0,1.95326983]
[1725802993195,0.000814,54353.0,54352.0,2.11376481]
[1725802994733,0.000814,54353.0,54352.0,2.09976481]
[1725802994946,0.000814,54353.0,54352.0,2.08776481]
[1725802995178,0.000814,54353.0,54352.0,2.11576481]
[1725802995407,0.000814,54353.0,54352.0,2.10176481]
[1725802996464,0.000814,54353.0,54352.0,2.11576481]
[1725802996673,0.000814,54353.0,54352.0,2.10176481]
[1725802997106,0.000814,54353.0,54352.0,2.11576481]
[1725802998256,0.000814,54353.0,54352.0,2.03820891]
[1725802999147,0.000814,54353.0,54352.0,2.01020891]
[1725802999365,0.000814,54353.0,54352.0,2.02420891]
[1725802999613,0.000814,54353.0,54352.0,2.03820891]
[1725802999816,0.000814,54353.0,54352.0,2.01020891]
[1725803000021,0.000814,54353.0,54352.0,2.02420891]
[1725803000230,0.000814,54353.0,54352.0,2.03820891]
[1725803000900,0.05515104,54367.0,54365.0,0.183939]
[1725803001111,0.05515104,54367.0,54362.0,0.735808]
[1725803001112,0.05515104,54368.0,54367.0,0.183935]
[1725803001340,0.05515104,54369.0,54367.0,0.183935]
[1725803002267,0.05515104,54369.0,54367.0,0.183934]
[1725803002674,0.23908004,54369.0,54366.0,0.183938]
[1725803002897,0.05515104,54369.0,54367.0,0.008]
[1725803003137,0.15515104,54369.0,54367.0,0.008]
[1725803003337,0.15515104,54369.0,54367.0,0.015]
[1725803003705,0.15515104,54369.0,54367.0,0.007]
[1725803005194,0.42205606,54371.0,54367.0,0.007]
[1725803005402,0.183926,54370.0,54367.0,0.007]
[1725803005624,0.183928,54369.0,54367.0,0.007]
[1725803006031,0.183928,54369.0,54367.0,0.015]
[1725803006254,0.183928,54369.0,54366.0,0.183938]
[1725803006700,0.183928,54369.0,54367.0,0.01]
[1725803006947,0.183928,54369.0,54367.0,0.004]
[1725803007151,0.183928,54369.0,54367.0,0.008]
[1725803007374,0.1,54368.0,54367.0,0.015]
[1725803008670,0.1,54368.0,54367.0,0.007]
[1725803009089,0.1,54368.0,54366.0,0.008]
[1725803009295,0.1,54368.0,54365.0,0.183938]
[1725803009532,0.283931,54368.0,54367.0,0.017]
[1725803009984,0.283931,54368.0,54367.0,0.009]
[1725803010201,0.1,54368.0,54367.0,0.009]
[1725803010420,0.1,54368.0,54366.0,0.008]
[1725803010860,0.1,54368.0,54365.0,0.192938]
[1725803011105,0.283933,54368.0,54367.0,0.008]
[1725803012356,0.283933,54368.0,54367.0,0.017]
[1725803012778,0.283933,54368.0,54367.0,0.009]
[1725803013692,0.36752893,54368.0,54367.0,0.009]
[1725803014327,0.73539193,54368.0,54367.0,0.017]
[1725803014549,0.65261,54368.0,54367.0,0.017]
[1725803015241,0.95449474,54368.0,54367.0,0.017]
[1725803015462,0.44866185,54368.0,54367.0,0.017]
[1725803015679,0.81652485,54368.0,54367.0,0.017]
[1725803017155,0.81549502,54368.0,54367.0,0.017]
[1725803017414,0.44763202,54368.0,54367.0,0.017]
[1725803022210,0.44752143,54368.0,54367.0,0.017]
[1725803022631,0.24566054,54368.0,54367.0,0.017]
[1725803023252,0.42959454,54368.0,54367.0,0.017]
[1725803023460,0.24566054,54368.0,54367.0,0.017]
[1725803023884,0.135109,54368.0,54367.0,0.017]
[1725803024525,0.27329843,54368.0,54367.0,0.017]
[1725803024735,0.235109,54368.0,54367.0,0.017]
[1725803025376,0.235109,54368.0,54367.0,0.018628]
[1725803025557,0.41904,54368.0,54367.0,0.018628]
[1725803025844,0.235109,54368.0,54367.0,0.018628]
[1725803026908,0.1,54368.0,54367.0,0.018628]
[1725803027494,0.23820847,54368.0,54367.0,0.018628]
[1725803029178,0.1,54368.0,54367.0,0.018628]
[1725803029387,0.23822481,54368.0,54367.0,0.018628]
[1725803031975,0.23821248,54368.0,54367.0,0.018628]
[1725803032666,0.283931,54368.0,54367.0,0.018628]
[1725803032889,0.1,54368.0,54367.0,0.018628]
[1725803034677,0.1,54368.0,54367.0,0.080328]
[1725803034881,0.1,54369.0,54367.0,0.080328]
[1725803035740,0.1,54369.0,54367.0,0.072328]
[1725803036165,0.1,54369.0,54367.0,0.070328]
[1725803036394,0.1,54369.0,54367.0,0.078328]
[1725803037453,0.15559822,54368.0,54367.0,0.078328]
[1725803038089,0.25559822,54368.0,54367.0,0.078328]
[1725803038643,0.25559822,54368.0,54367.0,0.063328]
[1725803039123,0.25559822,54368.0,54367.0,0.080328]
[1725803039755,0.25559822,54368.0,54367.0,0.063328]
[1725803039958,0.25559822,54368.0,54367.0,0.247263]
[1725803040204,0.25559822,54368.0,54367.0,0.253263]
[1725803040851,0.15559822,54368.0,54367.0,0.697033]
[1725803041073,0.15559822,54368.0,54367.0,0.145228]
[1725803041074,0.26832052,54368.0,54367.0,0.145228]
[1725803041278,0.11058773,54369.0,54368.0,0.183931]
[1725803041530,0.15633469,54370.0,54369.0,0.551784]
[1725803041762,0.15624165,54370.0,54369.0,0.613484]
[1725803043064,0.15624165,54370.0,54369.0,0.619484]
[1725803043296,0.15624165,54370.0,54369.0,0.625484]
[1725803043732,0.15624165,54370.0,54369.0,0.74143405]
[1725803044848,0.15760045,54370.0,54369.0,0.74143405]
[1725803046380,0.13899975,54370.0,54369.0,0.74143405]
[1725803046815,0.2957862,54370.0,54369.0,0.74143405]
[1725803047851,0.2957862,54370.0,54369.0,0.37357805]
[1725803048068,0.15760045,54370.0,54369.0,0.37357805]
[1725803048480,0.13899033,54370.0,54369.0,0.37357805]
[1725803048705,0.29577678,54370.0,54369.0,0.74143405]
[1725803050913,0.29577678,54370.0,54369.0,0.37357805]
[1725803051491,0.29577678,54370.0,54369.0,0.74143405]
[1725803051698,0.29577678,54370.0,54369.0,0.625484]
[1725803051965,0.15760045,54370.0,54369.0,0.625484]
[1725803053506,0.15760045,54370.0,54369.0,0.78920247]
[1725803054629,0.26811282,54370.0,54369.0,0.78920247]
[1725803056030,0.000814,54370.0,54369.0,0.78920247]
[1725803056455,0.05606046,54370.0,54369.0,0.78920247]
[1725803057822,0.000814,54370.0,54369.0,0.78920247]
[1725803058705,0.05605105,54370.0,54369.0,0.90527252]
[1725803058917,0.05605105,54370.0,54369.0,1.27312852]
[1725803059136,0.000814,54370.0,54369.0,1.27312852]
[1725803059824,0.08367111,54370.0,54369.0,1.27312852]
[1725803060252,0.05604915,54370.0,54369.0,1.27312852]
[1725803060489,0.000814,54370.0,54369.0,1.27312852]
[1725803060709,0.05604589,54370.0,54369.0,1.27312852]
[1725803060937,0.05604589,54370.0,54369.0,1.15705847]
[1725803061162,0.000814,54370.0,54369.0,1.15705847]
[1725803061408,0.05604415,54370.0,54369.0,1.15705847]
[1725803061622,0.0560444,54370.0,54369.0,1.15705847]
[1725803063088,0.0560444,54370.0,54369.0,1.30971412]
[1725803063337,0.05604105,54370.0,54369.0,1.30971412]
[1725803065303,0.05604105,54370.0,54369.0,1.15705847]
[1725803065960,0.000814,54370.0,54369.0,1.15705847]
[1725803070679,0.000814,54370.0,54369.0,1.15905847]
[1725803070955,0.000814,54370.0,54369.0,1.52691447]
[1725803073514,0.000814,54370.0,54369.0,1.52091447]
[1725803073976,0.000814,54370.0,54369.0,1.53491447]
[1725803074433,0.000814,54370.0,54369.0,1.52891447]
[1725803074915,0.000814,54370.0,54369.0,1.69313172]
[1725803075345,0.000814,54370.0,54369.0,1.68013172]
[1725803075558,0.000814,54370.0,54369.0,1.66613172]
[1725803075778,0.000814,54370.0,54369.0,1.68013172]
[1725803076449,0.000814,54370.0,54369.0,1.69413172]
[1725803076675,0.000814,54370.0,54369.0,1.69613172]
[1725803080511,0.000814,54370.0,54369.0,1.69413172]
[1725803081172,0.000814,54370.0,54369.0,1.69613172]
[1725803082893,0.000814,54370.0,54369.0,1.69413172]
[1725803083532,0.000814,54370.0,54369.0,1.69613172]
[1725803084412,0.000814,54370.0,54369.0,1.68213172]
[1725803084614,0.000814,54370.0,54369.0,1.68013172]
[1725803085034,0.000814,54370.0,54369.0,1.68213172]
[1725803085497,0.000814,54370.0,54369.0,1.69613172]
[1725803085709,0.000814,54370.0,54369.0,1.68213172]
[1725803085910,0.000814,54370.0,54369.0,1.66813172]
[1725803086133,0.000814,54370.0,54369.0,1.68213172]
[1725803087058,0.000814,54370.0,54369.0,2.07998772]
[1725803087489,0.000814,54370.0,54369.0,2.09398772]
[1725803087702,0.000814,54370.0,54369.0,2.11698772]
[1725803087925,0.000814,54370.0,54369.0,2.10298772]
[1725803088379,0.000814,54370.0,54369.0,2.11698772]
[1725803088839,0.000814,54370.0,54369.0,2.08898772]
[1725803089049,0.000814,54370.0,54369.0,2.22841862]
[1725803089257,0.000814,54370.0,54369.0,2.20298772]
[1725803089691,0.000814,54370.0,54369.0,2.21698772]
[1725803089901,0.000814,54370.0,54369.0,2.20298772]
[1725803090056,0.000814,54370.0,54369.0,2.57084372]
[1725803090273,0.000814,54370.0,54369.0,2.58484372]
[1725803090497,0.000814,54370.0,54369.0,2.20298772]
[1725803090745,0.000814,54370.0,54369.0,2.57084372]
[1725803090890,0.000814,54370.0,54369.0,2.58484372]
[1725803092752,0.000815,54376.0,54375.0,0.215908]
[1725803093031,0.000815,54380.0,54378.0,1.18320547]
[1725803093218,0.000815,54380.0,54378.0,2.01879547]
[1725803094839,0.000815,54380.0,54378.0,2.05579547]
[1725803095353,0.000815,54382.0,54381.0,0.032]
[1725803095571,0.000815,54390.0,54381.0,0.032]
[1725803095572,0.000815,54390.0,54389.0,0.42757847]
[1725803095754,0.000815,54390.0,54389.0,1.26302047]
[1725803096419,0.000815,54390.0,54389.0,1.99846247]
[1725803097271,0.000815,54390.0,54389.0,2.01246247]
[1725803097907,0.000815,54390.0,54389.0,2.02646247]
[1725803098135,0.000815,54390.0,54389.0,2.59535837]
[1725803098346,0.000815,54390.0,54389.0,2.59135837]
[1725803099188,0.000815,54390.0,54389.0,2.97307937]
[1725803099409,0.000815,54390.0,54389.0,2.95907937]
[1725803099639,0.29338031,54416.0,54411.0,0.183786]
[1725803099868,0.05497651,54416.0,54412.0,0.18378]
[1725803100076,0.05497651,54416.0,54411.0,0.183784]
[1725803100077,0.18377,54416.0,54411.0,0.183784]
[1725803100298,0.02566319,54416.0,54415.0,0.367545]
[1725803100529,0.00013,54419.0,54415.0,0.367542]
[1725803100733,0.00013,54419.0,54418.0,0.183762]
[1725803100974,0.00013,54419.0,54418.0,0.551287]
[1725803101873,0.00013,54419.0,54418.0,0.183762]
[1725803102271,0.00013,54419.0,54418.0,0.28450825]
[1725803102575,0.00013,54419.0,54407.0,0.183798]
[1725803102576,0.00154408,54419.0,54407.0,0.183798]
[1725803102745,0.367554,54414.0,54405.0,0.73811236]
[1725803102985,0.00709158,54419.0,54405.0,0.73811236]
[1725803102986,0.00249699,54419.0,54408.0,0.183794]
[1725803103299,0.00249699,54419.0,54407.0,0.367595]
[1725803103300,0.183786,54411.0,54407.0,0.183799]
[1725803103769,0.00459462,54414.0,54408.0,0.183796]
[1725803103770,0.183783,54412.0,54408.0,0.183796]
[1725803103998,0.183783,54412.0,54409.0,0.06400265]
[1725803104226,0.183777,54414.0,54410.0,0.183788]
[1725803104651,0.02880834,54417.0,54409.0,0.15262112]
[1725803104652,0.183779,54413.0,54409.0,0.15262112]
[1725803104888,0.183779,54413.0,54409.0,0.33641212]
[1725803105124,0.183784,54412.0,54409.0,0.15262112]
[1725803105350,0.183783,54412.0,54409.0,0.15262112]
[1725803105813,0.183783,54412.0,54410.0,0.007]
[1725803106019,0.183783,54412.0,54411.0,0.03524151]
[1725803106228,0.367556,54414.0,54411.0,0.03524151]
[1725803106683,0.183782,54412.0,54411.0,0.03524151]
[1725803106899,0.183782,54412.0,54409.0,0.17162112]
[1725803107124,0.183782,54412.0,54409.0,0.09761847]
[1725803107557,0.184597,54412.0,54409.0,0.09761847]
[1725803107991,0.183787,54411.0,54409.0,0.009]
[1725803108206,0.183787,54411.0,54406.0,0.08861847]
[1725803108207,0.183787,54411.0,54408.0,0.183796]
[1725803108413,0.000815,54412.0,54408.0,0.183796]
[1725803108833,0.000815,54412.0,54410.0,0.01]
[1725803109064,0.184599,54412.0,54408.0,0.183796]
[1725803109282,0.184599,54412.0,54409.0,0.01]
[1725803109959,0.184599,54412.0,54408.0,0.194796]
[1725803110167,0.000815,54412.0,54408.0,0.011]
[1725803110379,0.551379,54409.0,54408.0,0.011]
[1725803110581,0.183807,54405.0,54401.0,0.183819]
[1725803110831,0.183807,54405.0,54400.0,0.367646]
[1725803110832,0.183811,54404.0,54400.0,0.18382]
[1725803111045,0.183812,54404.0,54400.0,0.18382]
[1725803111272,0.367601,54407.0,54401.0,0.183819]
[1725803111496,0.183807,54405.0,54401.0,0.183819]
[1725803112009,0.183813,54403.0,54399.0,0.183824]
[1725803112205,0.367606,54406.0,54399.0,0.36765]
[1725803112419,0.02881306,54410.0,54399.0,0.07832025]
[1725803112644,0.02881306,54410.0,54399.0,0.183825]
[1725803112645,0.39423086,54407.0,54399.0,0.183825]
[1725803112862,0.367614,54405.0,54399.0,0.183825]
[1725803113081,0.183814,54403.0,54401.0,0.014]
[1725803113288,0.183814,54403.0,54401.0,0.028]
[1725803113489,0.183814,54403.0,54401.0,0.014]
[1725803113698,0.183809,54405.0,54401.0,0.014]
[1725803113908,0.05572898,54410.0,54401.0,0.014]
[1725803113909,0.367626,54403.0,54401.0,0.014]
[1725803114126,0.55604464,54402.0,54401.0,0.014]
[1725803114339,0.92367764,54402.0,54401.0,0.014]
[1725803114570,1.47573238,54402.0,54401.0,0.014]
[1725803115042,1.84336538,54402.0,54401.0,0.014]
[1725803115258,0.919117,54400.0,54399.0,0.012]
[1725803115511,1.80324252,54400.0,54399.0,0.012]
[1725803115728,1.90324252,54400.0,54399.0,0.011]
[1725803115970,1.55859552,54400.0,54399.0,0.011]
[1725803116176,0.367713,54391.0,54382.0,0.367768]
[1725803116395,0.367668,54397.0,54384.0,0.367754]
[1725803116396,0.00459684,54390.0,54384.0,0.367754]
[1725803116637,0.1,54396.0,54390.0,0.183854]
[1725803116856,0.1,54396.0,54391.0,0.18385]
[1725803117112,0.1,54396.0,54388.0,0.0688769]
[1725803117309,0.1,54396.0,54391.0,0.183853]
[1725803117530,0.18384,54395.0,54391.0,0.183853]
[1725803117733,0.183844,54394.0,54390.0,0.183856]
[1725803117966,0.367669,54397.0,54391.0,0.183851]
[1725803118193,0.367653,54400.0,54392.0,0.0816]
[1725803118407,0.183836,54397.0,54392.0,0.265448]
[1725803118620,0.183836,54397.0,54393.0,0.183846]
[1725803118869,0.367663,54398.0,54392.0,0.265449]
[1725803119294,0.183835,54397.0,54392.0,0.265449]
[1725803119736,0.183836,54397.0,54392.0,0.35495253]
[1725803119959,0.183836,54397.0,54392.0,0.34695253]
[1725803120188,0.183836,54397.0,54392.0,0.35295253]
[1725803120407,0.183838,54396.0,54392.0,0.35995253]
[1725803120630,0.183838,54396.0,54392.0,0.34695253]
[1725803120848,0.183838,54396.0,54392.0,0.35495253]
[1725803121137,0.183838,54396.0,54392.0,0.36195253]
[1725803121585,0.183831,54398.0,54393.0,0.183845]
[1725803121799,0.183835,54397.0,54392.0,0.36195353]
[1725803122170,0.183835,54397.0,54392.0,0.35395353]
[1725803122449,0.37224999,54399.0,54392.0,0.53080553]
[1725803122658,0.183834,54397.0,54393.0,0.183845]
[1725803122994,0.183834,54397.0,54393.0,0.29298255]
[1725803123200,0.367641,54401.0,54394.0,0.183843]
[1725803123411,0.004596,54400.0,54392.0,0.633148]
[1725803123625,0.104596,54400.0,54392.0,0.640148]
[1725803123827,0.183834,54397.0,54393.0,0.008]
[1725803124059,0.183834,54397.0,54393.0,0.183847]
[1725803124734,0.004596,54398.0,54393.0,0.1000863]
[1725803124952,0.183839,54396.0,54393.0,0.1000863]
[1725803125292,0.02881824,54400.0,54394.0,0.432886]
[1725803125532,0.02881824,54400.0,54395.0,0.24763584]
[1725803125735,0.02881824,54400.0,54399.0,0.633079]
[1725803126244,0.02881824,54400.0,54399.0,1.000732]
[1725803126458,0.02881824,54400.0,54399.0,1.16069608]
[1725803126942,0.183803,54406.0,54402.0,0.183816]
[1725803127185,0.467592,54409.0,54404.0,0.183808]
[1725803127186,0.651388,54409.0,54404.0,0.183808]
[1725803127425,0.1,54409.0,54405.0,0.183805]
[1725803127631,0.183796,54408.0,54404.0,0.265409]
[1725803127846,0.367586,54410.0,54404.0,0.0816]
[1725803128072,0.183796,54408.0,54404.0,0.265408]
[1725803128319,0.367589,54409.0,54404.0,0.0816]
[1725803128538,0.183792,54410.0,54404.0,0.0816]
[1725803128885,0.000815,54412.0,54405.0,0.00367604]
[1725803129090,0.000815,54412.0,54411.0,0.183786]
[1725803129310,0.000815,54412.0,54411.0,0.550358]
[1725803129520,0.000815,54412.0,54411.0,0.99953]
[1725803129768,0.000815,54412.0,54411.0,1.06473]
[1725803129983,0.000815,54412.0,54411.0,1.06073]
[1725803130221,0.000815,54412.0,54411.0,1.13126268]
[1725803130711,0.000815,54412.0,54411.0,1.51183468]
[1725803131410,0.000815,54412.0,54411.0,1.52283468]
[1725803131840,0.000815,54412.0,54411.0,1.15526268]
[1725803132777,0.000815,54412.0,54411.0,1.14226268]
[1725803133206,0.000815,54412.0,54411.0,1.14526268]
[1725803133435,0.000815,54412.0,54411.0,1.13126268]
[1725803133644,0.000815,54412.0,54411.0,1.14526268]
[1725803134316,0.000815,54412.0,54411.0,1.13126268]
[1725803134553,0.000815,54412.0,54411.0,1.55683468]
[1725803134821,0.00081,54425.0,54424.0,0.93071]
[1725803135063,0.00081,54425.0,54424.0,1.98701384]
[1725803135279,0.00081,54425.0,54424.0,2.12001384]
[1725803136447,0.00081,54445.0,54444.0,0.0828]
[1725803136893,0.00081,54445.0,54444.0,0.266474]
[1725803137109,0.00081,54445.0,54441.0,0.183682]
[1725803137595,0.00081,54445.0,54441.0,0.183684]
[1725803137825,0.00081,54445.0,54444.0,0.01]
[1725803138973,0.184481,54445.0,54441.0,0.006]
[1725803139188,0.368154,54445.0,54441.0,0.006]
[1725803139413,0.00081,54445.0,54441.0,0.013]
[1725803139631,0.00540177,54445.0,54441.0,0.013]
[1725803139897,0.183677,54444.0,54441.0,0.006]
[1725803140107,0.183677,54444.0,54431.0,0.0828]
[1725803140108,0.04200828,54444.0,54431.0,0.0828]
[1725803140346,0.04200828,54444.0,54433.0,0.18371]
[1725803140347,0.183697,54438.0,54433.0,0.18371]
[1725803140558,0.3686395,54443.0,54431.0,0.450231]
[1725803140559,0.00459241,54437.0,54431.0,0.0828]
[1725803140826,0.0008,54440.0,54431.0,0.0828]
[1725803141058,0.183699,54437.0,54432.0,0.183714]
[1725803141296,0.367364,54442.0,54431.0,0.0828]
[1725803141297,0.183708,54434.0,54431.0,0.0828]
[1725803141521,0.00459276,54436.0,54431.0,0.0828]
[1725803141753,0.367401,54437.0,54431.0,0.0828]
[1725803142003,0.18371,54434.0,54431.0,0.0828]
[1725803142225,0.00459276,54436.0,54431.0,0.0828]
[1725803142454,0.183705,54435.0,54431.0,0.0828]
[1725803142883,0.00459276,54436.0,54431.0,0.266517]
[1725803143128,0.3674,54437.0,54431.0,0.0828]
[1725803143372,0.367364,54442.0,54431.0,0.0868]
[1725803143580,0.00081,54445.0,54433.0,0.36742]
[1725803143581,0.1,54441.0,54433.0,0.36742]
[1725803143799,0.1,54441.0,54434.0,0.06199301]
[1725803144032,0.000814,54438.0,54437.0,0.183696]
[1725803144450,0.000814,54438.0,54435.0,0.183703]
[1725803144650,0.000814,54438.0,54437.0,0.328998]
[1725803144897,0.000814,54438.0,54437.0,0.696395]
[1725803145106,0.02814563,54444.0,54438.0,0.367389]
[1725803145324,0.02814563,54444.0,54440.0,0.183686]
[1725803145541,0.183675,54444.0,54440.0,0.183686]
[1725803145775,0.183676,54444.0,54440.0,0.183686]
[1725803146451,0.183684,54442.0,54437.0,0.1453]
[1725803146665,0.183685,54441.0,54437.0,0.328998]
[1725803146872,0.367356,54443.0,54437.0,0.328998]
[1725803147101,0.183686,54441.0,54437.0,0.2516825]
[1725803147325,0.183682,54442.0,54440.0,0.007]
[1725803147535,0.183682,54442.0,54437.0,0.2516825]
[1725803147787,0.183682,54442.0,54437.0,0.1453]
[1725803147993,0.183682,54442.0,54437.0,0.1543]
[1725803148459,0.00081,54445.0,54440.0,0.183686]
[1725803148688,0.00081,54445.0,54443.0,0.183675]
[1725803148872,0.00081,54445.0,54440.0,0.367376]
[1725803148873,0.00081,54445.0,54444.0,0.266474]
[1725803150248,0.00081,54445.0,54444.0,0.280474]
[1725803151144,0.00081,54445.0,54444.0,0.714423]
[1725803151369,0.00081,54445.0,54444.0,0.347074]
[1725803151675,0.00081,54445.0,54444.0,1.095772]
[1725803151992,0.00081,54445.0,54444.0,0.728423]
[1725803153124,0.00081,54445.0,54444.0,0.360774]
[1725803153356,0.00081,54445.0,54444.0,0.360674]
[1725803153580,0.00081,54445.0,54444.0,0.727923]
[1725803153794,0.00081,54445.0,54444.0,0.727723]
[1725803154003,0.00081,54445.0,54444.0,0.8369322]
[1725803154268,0.00081,54445.0,54444.0,1.2041812]
[1725803154495,0.00081,54445.0,54444.0,1.2038812]
[1725803154716,0.00081,54445.0,54444.0,0.8365322]
[1725803154939,0.00081,54445.0,54444.0,0.8362322]
[1725803155149,0.00081,54445.0,54444.0,0.8360322]
[1725803155363,0.00081,54445.0,54444.0,0.8359322]
[1725803155603,0.00081,54445.0,54444.0,0.8358322]
[1725803158302,0.00081,54445.0,54444.0,0.4684832]
[1725803158535,0.00081,54445.0,54444.0,0.726323]
[1725803160055,0.00081,54445.0,54444.0,0.1087]
[1725803160272,0.00081,54445.0,54444.0,0.292374]
[1725803160946,0.00081,54445.0,54444.0,1.027072]
[1725803161629,0.00081,54445.0,54444.0,1.093672]
[1725803162280,0.00081,54445.0,54444.0,1.25970784]
[1725803162704,0.31243075,54455.0,54444.0,1.25970784]
[1725803162705,0.02879075,54455.0,54444.0,0.72409242]
[1725803162953,0.00081,54458.0,54457.0,0.918155]
[1725803163262,0.00081,54458.0,54457.0,0.694793]
[1725803163433,0.00081,54458.0,54457.0,1.62835284]
[1725803163678,0.00081,54458.0,54457.0,2.03676184]
[1725803164111,0.00081,54467.0,54466.0,1.22793784]
[1725803164334,0.00081,54467.0,54466.0,1.59513884]
[1725803165446,0.27683293,54481.0,54471.0,0.0773]
[1725803165658,0.283554,54480.0,54475.0,0.183568]
[1725803166083,0.1,54480.0,54475.0,0.183568]
[1725803166285,0.283556,54480.0,54474.0,0.183572]
[1725803166437,0.283556,54480.0,54471.0,0.0773]
[1725803166438,0.2033722,54480.0,54471.0,0.0773]
[1725803166667,0.2033722,54480.0,54472.0,0.183579]
[1725803166668,0.183566,54477.0,54472.0,0.183579]
[1725803166897,0.183577,54473.0,54471.0,0.0773]
[1725803167123,0.36713,54477.0,54471.0,0.0773]
[1725803167574,0.49568451,54480.0,54471.0,0.0773]
[1725803167575,0.183577,54473.0,54471.0,0.0773]
[1725803167997,0.183575,54474.0,54471.0,0.0773]
[1725803168201,0.183575,54474.0,54471.0,0.0903]
[1725803168431,0.18358,54472.0,54471.0,0.013]